bitfinex/quotes_ETHUSD_20260119
["timestamp","ask_amount","ask_price","bid_price","bid_amount"]
[1768810980160,0.00080016,3216.0,3215.1,0.95529333]
[1768810980359,0.5118,3217.0,3216.0,0.95529333]
[1768810980831,3.10800905,3217.5,3216.6,0.00080008]
[1768810981020,0.511,3217.2,3216.6,0.00080008]
[1768810981723,0.511,3217.2,3216.2,6.21851874]
[1768810981724,1.04218583,3217.0,3215.9,0.00080024]
[1768810981924,1.04218583,3217.0,3215.9,3.11027814]
[1768810982126,1.04218583,3217.0,3216.1,3.1093371]
[1768810982127,0.00080008,3217.0,3216.1,3.1093371]
[1768810982334,0.00080008,3217.0,3215.9,0.95609357]
[1768810982650,0.00080008,3217.0,3216.1,3.10935605]
[1768810982839,0.0008,3217.6,3216.6,0.00080016]
[1768810983038,0.0008,3217.6,3217.0,0.95529333]
[1768810983540,0.0008,3217.6,3217.1,3.10838954]
[1768810984050,0.511,3217.6,3217.1,0.95529333]
[1768810984263,0.511,3217.6,3216.9,0.00080008]
[1768810984264,0.00080008,3217.6,3216.9,0.00080008]
[1768810984441,0.00080008,3217.6,3217.0,4.06375523]
[1768810984442,0.511,3217.5,3217.0,4.06375523]
[1768810984757,0.511,3217.5,3217.0,0.95529333]
[1768810984961,0.00080008,3217.6,3217.0,0.95529333]
[1768810985145,0.511,3217.5,3217.0,0.95529333]
[1768810985563,0.00080008,3217.6,3217.0,0.95529333]
[1768810985742,0.31165837,3217.6,3217.1,3.10838954]
[1768810985944,0.0008,3217.9,3217.2,0.95609349]
[1768810986257,0.0008,3219.4,3218.4,0.00080008]
[1768810986258,0.00068043,3219.1,3218.4,0.00080008]
[1768810986742,0.511,3219.2,3218.7,0.00080008]
[1768810987130,1.04218583,3219.1,3217.9,0.00080008]
[1768810987334,1.04138575,3218.7,3217.9,0.00080008]
[1768810987585,4.14828494,3218.7,3217.9,0.00080008]
[1768810987732,1.23658364,3218.6,3217.9,0.00080008]
[1768810987939,0.00080008,3218.3,3217.5,0.00080008]
[1768810988134,0.00080008,3218.3,3217.2,0.00080016]
[1768810988135,1.04138575,3218.2,3217.2,0.00080016]
[1768810988441,0.00080008,3217.9,3217.2,0.00080016]
[1768810988647,0.00080016,3217.6,3216.9,0.00080008]
[1768810989090,1.04218591,3217.6,3215.8,0.95529333]
[1768810989374,1.04218591,3217.6,3215.2,0.40664167]
[1768810989375,0.00080016,3217.0,3215.4,0.95529333]
[1768810989573,1.04218591,3217.0,3215.4,0.95529333]
[1768810989734,1.04138575,3216.8,3215.4,0.95529333]
[1768810990069,1.03673545,3216.9,3215.1,3.11029775]
[1768810990070,0.00080024,3216.3,3215.1,3.11029775]
[1768810990368,0.51,3216.2,3215.0,4.06644877]
[1768810990779,0.00080024,3216.3,3215.3,3.1109083]
[1768810990998,0.51080024,3216.3,3215.4,3.11002347]
[1768810991276,0.51080024,3216.3,3215.4,3.11001805]
[1768810991475,0.51,3216.2,3215.4,3.11001805]
[1768810991944,0.3619983,3216.1,3215.4,3.11001805]
[1768810992352,0.51,3216.2,3215.3,3.11091995]
[1768810992555,0.00080024,3216.3,3215.3,6.22104964]
[1768810992757,0.00080024,3216.3,3215.9,0.002]
[1768810996487,0.00080008,3217.9,3216.5,0.95529333]
[1768810996790,0.93273141,3219.8,3217.9,0.00080016]
[1768810996942,1.04138575,3220.6,3218.5,0.95529333]
[1768810997641,1.04138575,3220.6,3218.7,6.29932676]
[1768810997841,1.04138575,3220.6,3218.8,0.51]
[1768810998397,3.10631037,3220.1,3218.8,0.51]
[1768810998549,0.31063104,3220.0,3218.8,0.51]
[1768810998743,1.35201679,3220.0,3218.8,0.51]
[1768810998943,1.04138575,3219.9,3218.8,0.51]
[1768810999165,1.04138575,3219.9,3218.4,0.00080016]
[1768810999365,1.04138575,3219.7,3218.4,0.00080016]
[1768810999568,1.04138575,3219.5,3217.6,0.51]
[1768810999771,0.00080016,3218.8,3217.6,0.51]
[1768810999966,0.00080016,3218.8,3217.6,3.61790651]
[1768811000169,0.00080016,3218.8,3217.6,6.72581302]
[1768811000374,0.00080016,3218.8,3217.6,3.61790651]
[1768811000879,1.04218591,3218.8,3217.6,3.61787985]
[1768811001085,1.04218591,3218.8,3217.6,0.51]
[1768811001455,1.04218591,3218.8,3217.5,0.00080016]
[1768811001655,1.04138575,3218.6,3217.5,0.00080016]
[1768811001856,1.04138575,3218.5,3217.5,0.00080016]
[1768811003059,0.00080016,3218.8,3217.9,0.97717894]
[1768811003258,9.82677018,3220.0,3218.4,0.00080024]
[1768811003459,1.49275702,3219.9,3218.4,0.00080024]
[1768811003773,4.62877012,3219.8,3218.4,0.00080024]
[1768811004185,1.01298716,3219.7,3218.4,0.00080024]
[1768811004491,6.72156592,3219.8,3217.9,3.10835163]
[1768811004492,0.00080024,3218.8,3217.9,3.10835163]
[1768811004691,0.00080024,3218.8,3217.9,0.00080016]
[1768811005765,6.21429594,3218.8,3217.9,0.00080016]
[1768811005955,1.68541675,3218.7,3217.9,0.00080016]
[1768811006655,0.67242959,3218.7,3217.9,0.00080016]
[1768811007065,0.51,3218.7,3217.9,0.00080016]
[1768811007275,0.00080024,3218.8,3217.9,0.00080016]
[1768811007488,0.51,3218.7,3217.9,0.00080016]
[1768811007684,0.00080024,3218.8,3217.9,0.00080016]
[1768811007992,0.51,3218.9,3218.4,0.00080032]
[1768811009070,0.51,3218.9,3217.9,0.00080016]
[1768811009071,0.00080032,3218.8,3217.9,0.00080016]
[1768811009684,0.51,3218.7,3217.9,0.00080016]
[1768811010192,1.52298716,3218.7,3217.9,0.00080016]
[1768811010374,0.51,3218.6,3217.9,0.00080016]
[1768811010578,0.51,3218.5,3217.9,0.00080016]
[1768811011112,0.00080032,3218.8,3217.9,0.00080016]
[1768811011560,3.1061586,3219.5,3217.9,0.97717894]
[1768811011761,0.82061586,3219.4,3218.4,0.0008004]
[1768811011978,6.21127052,3220.0,3218.5,0.97637878]
[1768811012167,6.72127052,3220.0,3218.5,0.97637878]
[1768811012378,0.51,3219.9,3218.5,0.97637878]
[1768811012582,0.51,3219.9,3218.4,0.0008004]
[1768811012801,1.52298716,3219.8,3218.4,0.0008004]
[1768811012972,1.08399381,3219.8,3218.4,0.97717918]
[1768811013161,0.0008,3220.1,3218.4,0.97717918]
[1768811013777,0.0008,3220.1,3218.6,0.97545921]
[1768811014269,1.01298716,3219.9,3218.4,0.0008004]
[1768811014473,0.51,3219.8,3218.5,0.97637878]
[1768811014880,0.0008,3220.1,3218.5,0.97637878]
[1768811015079,0.51,3220.0,3218.5,0.97637878]
[1768811015292,0.0008,3220.1,3218.5,0.97637878]
[1768811015459,0.51,3220.0,3218.6,0.97637878]
[1768811015660,0.0008,3220.1,3218.7,3.10684437]
[1768811016067,0.0008,3220.1,3218.7,6.21368874]
[1768811016274,0.51,3220.0,3218.6,4.08330895]
[1768811017091,0.51,3220.0,3218.6,0.97637878]
[1768811017263,0.5108,3220.1,3218.6,7.19022763]
[1768811017464,0.51,3220.0,3218.6,7.19022763]
[1768811017703,0.0008,3220.1,3218.6,4.80238953]
[1768811017878,3.61570466,3219.9,3218.6,7.90933043]
[1768811018083,3.61570466,3219.9,3218.6,4.80238953]
[1768811018271,6.72140932,3219.9,3218.6,4.80238953]
[1768811018983,6.72140932,3219.9,3218.6,0.97637878]
[1768811019372,6.72140932,3219.9,3218.4,0.0008004]
[1768811019694,6.21140932,3219.9,3218.6,3.10693319]
[1768811019901,6.21118012,3220.0,3218.5,0.94563188]
[1768811020086,0.51,3219.9,3218.5,0.94563188]
[1768811020291,0.67211801,3219.8,3218.5,0.94563188]
[1768811020799,0.0008,3220.1,3218.5,0.94563188]
[1768811021364,3.10630427,3220.1,3218.5,0.94563188]
[1768811021565,0.0008,3220.1,3218.5,0.94563188]
[1768811021769,0.0008,3220.1,3218.7,0.94563188]
[1768811021969,0.0008,3220.1,3218.9,0.94563188]
[1768811022369,0.003,3220.5,3220.0,0.00080008]
[1768811023101,0.0008,3220.7,3220.0,0.94643196]
[1768811023288,0.51,3220.8,3220.0,0.94643196]
[1768811023492,0.51,3220.8,3220.3,0.00080008]
[1768811023696,0.5108,3221.0,3220.3,0.00080008]
[1768811023898,0.36153671,3220.9,3220.3,0.00080008]
[1768811024405,3.61546644,3221.0,3220.3,0.00080008]
[1768811024702,0.0008,3221.3,3220.3,0.94643196]
[1768811024873,0.0008,3221.3,3220.6,0.00080008]
[1768811025216,0.0008,3221.8,3220.9,0.94643196]
[1768811025569,3.10471637,3221.8,3220.9,0.00080008]
[1768811025772,3.10404767,3221.6,3220.9,0.00080008]
[1768811026000,3.10404767,3221.6,3220.6,0.00080008]
[1768811026001,0.00080008,3221.3,3220.6,0.00080008]
[1768811026171,0.98066509,3221.3,3220.6,0.00080008]
[1768811026378,0.00080008,3221.0,3220.3,0.00080008]
[1768811026986,0.00080008,3221.0,3220.3,0.94643196]
[1768811027801,0.00080008,3221.0,3220.3,0.00080008]
[1768811028211,0.00080008,3221.3,3220.3,0.00080008]
[1768811028418,0.00455074,3222.0,3221.0,0.94563188]
[1768811028711,0.00455074,3222.0,3221.4,0.00080008]
[1768811028913,0.00755074,3222.0,3221.4,0.00080008]
[1768811029310,0.509,3221.9,3221.4,0.00080008]
[1768811029679,0.67238938,3221.8,3221.4,0.00080008]
[1768811030010,0.509,3221.7,3220.9,0.00080016]
[1768811030709,0.67318946,3221.8,3220.9,0.00080016]
[1768811030902,0.509,3221.7,3220.9,0.00080016]
[1768811031103,0.00080008,3221.8,3220.9,0.00080016]
[1768811031310,0.509,3221.7,3220.9,0.00080016]
[1768811031885,3.10414403,3221.5,3220.9,0.00080016]
[1768811032093,0.509,3221.4,3220.9,0.00080016]
[1768811032293,0.8703144,3221.3,3220.9,0.00080016]
[1768811032505,0.8703144,3221.3,3220.6,0.00080016]
[1768811032707,0.8703144,3221.3,3220.3,0.00080008]
[1768811032708,0.00080016,3221.0,3220.3,0.00080008]
[1768811032908,0.00080008,3220.7,3219.7,0.00080008]
[1768811033219,0.509,3220.6,3219.7,0.00080008]
[1768811033420,0.00080008,3220.7,3219.7,0.00080008]
[1768811033620,0.509,3220.5,3219.7,0.00080008]
[1768811033787,0.509,3220.5,3218.5,0.03107037]
[1768811033788,0.00080008,3220.1,3218.5,0.03107037]
[1768811033994,0.96394289,3220.1,3218.5,0.31389591]
[1768811034228,0.96394289,3220.1,3218.4,0.0008004]
[1768811034433,0.509,3220.0,3218.5,3.10703743]
[1768811034726,0.96394289,3220.1,3218.5,3.10703743]
[1768811034727,0.00080008,3220.1,3218.6,0.98819559]
[1768811034885,0.00080008,3220.1,3218.7,1.01926403]
[1768811035229,0.50980008,3220.1,3218.7,1.01926403]
[1768811035530,0.509,3220.0,3218.7,1.01926403]
[1768811036234,0.509,3220.0,3218.8,3.10674785]
[1768811036391,3.61459606,3220.0,3218.5,3.10697519]
[1768811036731,6.72019212,3220.0,3218.4,3.10792164]
[1768811037293,0.00080008,3220.4,3219.7,0.00080016]
[1768811037492,0.00080016,3220.1,3219.5,0.98819559]
[1768811038034,0.00080016,3220.1,3218.8,0.98819559]
[1768811038245,0.00080016,3220.1,3219.0,7.20130525]
[1768811038397,0.509,3220.0,3219.0,7.20130525]
[1768811038591,0.509,3220.0,3219.0,4.09475042]
[1768811038825,0.509,3220.0,3219.0,7.20130525]
[1768811039191,0.00080016,3220.1,3218.9,7.55482657]
[1768811039423,0.509,3220.0,3218.9,3.10662138]
[1768811040235,0.00080016,3220.1,3218.6,6.2138818]
[1768811040394,0.509,3219.9,3218.6,7.20207739]
[1768811040901,0.96314281,3219.7,3218.4,0.0008004]
[1768811041107,0.96314281,3219.5,3218.4,0.0008004]
[1768811041930,0.96314281,3219.3,3218.4,0.0008004]
[1768811042226,0.0008004,3218.8,3218.2,0.002]
[1768811043016,0.509,3218.7,3218.2,0.002]
[1768811043998,0.0008004,3218.8,3218.2,0.002]
[1768811044226,3.1057251,3220.7,3218.2,0.0009332]
[1768811044227,0.96314281,3219.9,3218.2,0.0009332]
[1768811044532,3.61478296,3219.8,3218.4,0.00080048]
[1768811044728,0.45779258,3219.7,3218.4,0.00080048]
[1768811045738,1.42093539,3219.7,3218.4,0.00080048]
[1768811046231,0.7,3219.4,3218.4,0.00080048]
[1768811047132,0.509,3219.3,3218.4,0.00080048]
[1768811047500,0.96314281,3219.2,3218.4,0.00080048]
[1768811047943,0.509,3219.1,3218.4,0.00080048]
[1768811048114,0.96314281,3219.0,3218.4,0.00080048]
[1768811048453,0.96394329,3218.8,3218.2,0.0009332]
[1768811048729,0.509,3218.7,3218.2,0.0009332]
[1768811049041,3.1069409,3218.6,3218.2,0.0009332]
[1768811049242,0.36159409,3218.5,3218.2,0.0009332]
[1768811051006,0.96314281,3218.3,3217.7,0.002]
[1768811051206,0.96394297,3218.3,3217.7,0.002]
[1768811052125,0.509,3218.2,3217.7,0.002]
[1768811052323,0.96394297,3218.3,3217.2,0.00080024]
[1768811052324,0.509,3218.1,3217.2,0.00080024]
[1768811053232,0.71782109,3218.2,3217.2,0.00080024]
[1768811053418,0.509,3218.1,3217.2,0.00080024]
[1768811053632,3.82517585,3218.2,3217.2,0.00080024]
[1768811053837,0.509,3218.0,3217.2,0.00080024]
[1768811055030,1.18136547,3218.0,3217.2,0.00080024]
[1768811055365,0.509,3218.0,3217.2,0.00080024]
[1768811055868,0.96394297,3218.3,3217.2,0.00080024]
[1768811056014,0.509,3218.2,3217.2,0.00080024]
[1768811056651,0.96314281,3218.2,3217.2,0.00080024]
[1768811056959,1.47214281,3218.1,3217.2,0.00080024]
[1768811057160,0.96314281,3217.8,3216.6,0.00080024]
[1768811057457,0.00080024,3217.0,3216.2,0.002]
[1768811057620,0.509,3216.9,3216.2,0.002]
[1768811057820,0.00080024,3217.0,3216.2,0.002]
[1768811058262,0.509,3216.9,3216.2,0.002]
[1768811058424,0.00080024,3217.0,3216.2,0.002]
[1768811058750,1.47214281,3216.9,3216.2,0.002]
[1768811058916,0.96314281,3216.8,3216.2,0.002]
[1768811059113,7.18069495,3216.7,3216.2,0.002]
[1768811059316,0.7180695,3216.6,3215.3,0.98899583]
[1768811059517,0.7180695,3216.6,3215.3,4.09910475]
[1768811059756,0.508,3216.5,3215.3,4.09907073]
[1768811059923,0.508,3216.5,3215.3,3.11087514]
[1768811060653,0.508,3216.4,3215.3,3.11087514]
[1768811060956,0.509,3216.3,3215.3,0.00080024]
[1768811061547,0.50980032,3216.3,3215.3,0.00080024]
[1768811061746,3.61896375,3216.3,3215.3,0.00080024]
[1768811062112,0.50980032,3216.3,3215.3,0.00080024]
[1768811062663,0.00080024,3217.0,3215.9,1.01390814]
[1768811062849,0.509,3216.9,3215.9,1.01390814]
[1768811063160,0.509,3216.9,3215.9,0.0008004]
[1768811063818,0.00080024,3217.0,3215.9,0.0008004]
[1768811064018,0.509,3216.8,3215.9,0.0008004]
[1768811064650,0.508,3216.7,3215.9,1.01390814]
[1768811065246,0.00080016,3217.3,3216.0,1.01310774]
[1768811065451,0.509,3217.0,3216.6,0.00080032]
[1768811065651,0.00080016,3217.3,3216.6,0.31178696]
[1768811065850,0.00080024,3217.6,3216.6,0.31178696]
[1768811066028,0.00080024,3217.6,3216.9,0.00080024]
[1768811066233,0.508,3217.5,3216.9,0.00080024]
[1768811066433,0.00080024,3217.6,3216.9,0.00080024]
[1768811066922,0.50880024,3217.6,3216.9,0.00080024]
[1768811067539,0.50880024,3217.6,3216.9,0.62263548]
[1768811067732,0.00080024,3217.6,3216.9,0.62263548]
[1768811068445,0.508,3217.8,3216.9,0.62263548]
[1768811068649,0.508,3217.8,3217.2,0.00080032]
[1768811069360,0.50880016,3217.9,3217.2,0.00080032]
[1768811069560,0.50880016,3217.9,3217.2,0.62257758]
[1768811070338,0.00080016,3217.9,3217.2,0.62257758]
[1768811071562,0.00080016,3217.9,3217.3,3.10819631]
[1768811072931,0.00080016,3217.9,3217.2,3.73085107]
[1768811073134,0.00080016,3217.9,3217.2,0.62257758]
[1768811073332,0.00080016,3217.9,3217.2,0.00080032]
[1768811073527,1.00004043,3217.9,3217.2,0.00080032]
[1768811074064,0.00080032,3217.6,3216.9,0.00053377]
[1768811075058,1.00004059,3217.6,3216.9,0.00053377]
[1768811075563,0.508,3217.5,3216.9,0.00053377]
[1768811075745,0.50880032,3217.6,3216.9,0.00053377]
[1768811077675,0.00080032,3217.6,3216.9,0.00053377]
[1768811077864,0.50880032,3217.6,3216.9,0.00053377]
[1768811078943,1.00004043,3217.9,3216.9,0.00053377]
[1768811078944,0.00080016,3217.9,3216.9,0.96113934]
[1768811079144,0.00080016,3217.9,3217.2,0.0008004]
[1768811081469,0.92953797,3217.9,3217.2,0.0008004]
[1768811081667,0.001,3217.6,3217.2,0.0008004]
[1768811081957,0.001,3217.6,3217.2,0.31172906]
[1768811082562,0.001,3217.6,3217.2,3.42001496]
[1768811083366,1.43753797,3217.9,3217.2,3.42001496]
[1768811083367,0.50880016,3217.9,3217.2,3.42001496]
[1768811083946,0.00080016,3217.9,3217.2,3.42001496]
[1768811084370,0.00080016,3217.9,3217.2,0.31172906]
[1768811084755,0.00080016,3217.9,3217.2,3.42001581]
[1768811085378,0.92953797,3217.9,3217.2,3.4200103]
[1768811086849,0.92953797,3217.9,3217.2,0.31172906]
[1768811087174,0.00080016,3218.3,3217.3,0.94069596]
[1768811087423,0.00080016,3218.3,3217.5,0.00080024]
[1768811088542,0.00080016,3218.3,3217.5,6.21680644]
[1768811088994,0.00080016,3218.3,3217.5,3.10880334]
[1768811090494,0.00080016,3218.3,3217.5,0.00080024]
[1768811090495,0.92953797,3218.3,3217.5,0.00080024]
[1768811091297,1.38399943,3218.3,3217.5,0.00080024]
[1768811091500,0.87767103,3218.2,3217.5,0.00080024]
[1768811093711,0.001,3218.0,3217.5,0.00080024]
[1768811094119,0.00080016,3218.3,3217.5,0.00080024]
[1768811094817,0.96914587,3218.3,3217.5,0.00080024]
[1768811095107,1.4267747,3218.2,3217.5,0.00080024]
[1768811095290,0.96834571,3218.2,3217.5,0.00080024]
[1768811096682,0.96834571,3218.0,3217.5,0.00080024]
[1768811096878,0.96834571,3218.0,3217.2,0.0008004]
[1768811096879,0.96834571,3218.0,3216.9,0.00053377]
[1768811097077,0.0008004,3217.6,3216.9,0.00053377]
[1768811100113,0.35391371,3217.6,3216.9,0.00053377]
[1768811100410,0.42255766,3217.6,3216.9,0.00053377]
[1768811100611,0.508,3217.5,3216.9,0.00053377]
[1768811100813,0.508,3217.4,3216.9,0.00053377]
[1768811101014,0.0008004,3217.6,3216.9,0.00053377]
[1768811101398,0.5088004,3217.6,3216.9,0.00053377]
[1768811102021,4.39961456,3217.6,3216.9,0.00053377]
[1768811102317,4.39964994,3217.6,3216.9,0.00053377]
[1768811102616,1.29169095,3217.6,3216.9,0.00053377]
[1768811102792,4.03796219,3217.6,3216.9,0.00053377]
[1768811102994,0.93002642,3217.6,3216.9,0.00053377]
[1768811103318,4.03795834,3217.6,3216.9,0.00053377]
[1768811103686,0.42070692,3217.5,3216.6,0.00026731]
[1768811103893,0.00080024,3217.3,3216.6,0.00026731]
[1768811104204,0.00080024,3217.3,3216.6,4.03252358]
[1768811104720,0.00080024,3217.3,3216.6,0.92371355]
[1768811105520,0.00080024,3217.3,3217.2,0.002]
[1768811105696,0.66456309,3217.3,3217.2,0.002]
[1768811106092,1.08476277,3217.3,3217.2,0.002]
[1768811107231,0.42099992,3217.3,3217.2,0.002]
[1768811107530,0.50880024,3217.3,3217.2,0.002]
[1768811107832,0.00080024,3217.3,3217.2,0.002]
[1768811110228,0.00080024,3217.3,3217.2,0.92544624]
[1768811110429,0.0008004,3217.6,3217.2,0.92544624]
[1768811112936,0.0008004,3217.6,3217.0,0.92344624]
[1768811114011,0.0008004,3217.6,3216.9,0.00280032]
[1768811114213,0.66433153,3217.6,3216.9,0.00280032]
[1768811115540,3.1080031,3217.5,3216.9,0.00280032]
[1768811116529,3.77233044,3217.6,3216.9,0.00280032]
[1768811116712,6.88032935,3217.6,3216.9,0.00280032]
[1768811117326,0.41841021,3217.5,3216.9,0.00280032]
[1768811117629,3.10819631,3217.3,3216.9,0.00280032]
[1768811117940,7.36457557,3217.4,3216.9,0.00280032]
[1768811118238,0.41819069,3217.2,3216.9,0.00280032]
[1768811118731,0.001,3217.1,3216.9,0.00280032]
[1768811119536,0.50880032,3217.0,3216.2,0.92544624]
[1768811119833,3.61736241,3217.0,3216.2,0.92544624]
[1768811120006,6.7259245,3217.0,3216.2,0.92544624]
[1768811120819,7.70945171,3217.0,3216.2,0.92544624]
[1768811121927,0.41707024,3216.9,3216.2,0.002]
[1768811122702,7.20145171,3217.0,3216.2,0.99611648]
[1768811122941,7.70945171,3217.0,3216.2,0.99611648]
[1768811126410,7.61750951,3217.0,3216.2,0.99611648]
[1768811126724,1.58069299,3216.9,3216.2,0.99611648]
[1768811128059,6.21735886,3216.8,3216.2,0.99611648]
[1768811129545,3.10867943,3216.8,3216.2,0.99611648]
[1768811130174,6.21735886,3216.8,3216.2,0.99611648]
[1768811130666,6.21735886,3216.8,3216.5,0.002]
[1768811130846,0.67353589,3216.7,3216.5,0.002]
[1768811131045,3.10932873,3217.0,3216.6,0.99411648]
[1768811131369,6.21785714,3217.0,3216.6,0.99411648]
[1768811131673,6.21785714,3217.0,3216.5,0.002]
[1768811131886,0.00080032,3217.0,3216.5,0.99611648]
[1768811137853,0.92307672,3217.0,3216.5,0.002]
[1768811138246,6.21716558,3216.9,3216.5,0.002]
[1768811138576,7.85356621,3216.9,3216.2,0.99611648]
[1768811139082,0.9222764,3216.8,3216.2,0.002]
[1768811139488,1.4302764,3216.8,3216.2,0.002]
[1768811140752,6.21755214,3216.7,3216.2,0.002]
[1768811140953,0.95314507,3216.6,3215.9,0.9807694]
[1768811141154,1.71792792,3216.6,3215.9,0.9807694]
[1768811141576,0.76478285,3216.6,3215.9,0.9807694]
[1768811141783,6.21755214,3216.7,3215.9,0.9807694]
[1768811142083,0.508,3216.8,3215.9,0.9807694]
[1768811142084,3.10869506,3216.8,3215.9,0.9807694]
[1768811142582,6.21739012,3216.8,3215.9,0.9807694]
[1768811143159,7.17053519,3216.8,3215.9,0.9807694]
[1768811143367,4.06184013,3216.8,3215.9,0.9807694]
[1768811143578,7.69901166,3216.8,3215.9,0.9807694]
[1768811144384,10.80770672,3216.8,3216.5,0.002]
[1768811144687,10.80770672,3216.8,3215.9,0.0028004]
[1768811144688,6.21774544,3216.6,3215.9,0.0028004]
[1768811144860,7.17089051,3216.6,3215.9,0.0028004]
[1768811145184,7.17089051,3216.6,3216.1,0.002]
[1768811145384,0.71718905,3216.5,3216.1,0.002]
[1768811145757,0.95314507,3216.4,3216.1,0.002]
[1768811145959,0.71718905,3216.5,3216.1,0.002]
[1768811146895,6.21813206,3216.4,3216.1,0.002]
[1768811148689,0.0008004,3216.3,3215.8,0.977969]
[1768811149264,0.0008004,3216.3,3215.6,0.98076924]
[1768811149464,1.79367213,3216.3,3215.6,0.98076924]
[1768811149670,2.30167213,3216.3,3215.6,0.98076924]
[1768811150088,0.84052706,3216.3,3215.6,0.98076924]
[1768811150288,0.0008004,3216.3,3215.6,0.98076924]
[1768811150699,0.00080024,3216.0,3215.3,0.00080024]
[1768811150905,0.95394531,3216.0,3215.3,0.00080024]
[1768811151208,0.95314507,3215.9,3215.3,0.00080024]
[1768811152517,0.95314507,3215.3,3214.6,0.002]
[1768811152660,1.45667136,3215.2,3214.6,0.002]
[1768811152860,6.2208398,3215.0,3214.6,0.002]
[1768811153061,0.94867136,3214.8,3214.6,0.002]
[1768811153263,0.94947152,3215.4,3214.6,0.96305796]
[1768811153510,0.94867136,3215.2,3214.6,0.002]
[1768811154389,6.72825938,3215.3,3214.6,0.002]
[1768811154390,0.94867136,3215.0,3214.6,0.002]
[1768811154693,0.00080016,3214.2,3213.8,1e-08]
[1768811155666,0.00080016,3214.2,3213.5,0.68499036]
[1768811155866,0.94947152,3214.2,3213.5,0.00080016]
[1768811156296,0.00080016,3214.2,3213.5,4.64101849]
[1768811156507,0.00080008,3214.9,3214.0,0.68258996]
[1768811156806,3.11136853,3214.9,3214.2,0.68258996]
[1768811157015,0.00080008,3214.9,3214.2,0.68258996]
[1768811157913,0.94947144,3214.9,3214.1,0.00280016]
[1768811158980,6.22122682,3214.8,3214.1,0.00280016]
[1768811159186,0.94867136,3214.6,3214.1,0.00280016]
[1768811159412,0.94867136,3214.5,3214.1,0.00280016]
[1768811160688,0.508,3214.6,3214.1,0.00280016]
[1768811160891,0.94867136,3214.5,3214.1,0.00280016]
[1768811161108,3.11100049,3214.4,3214.1,0.00280016]
[1768811161531,0.93325908,3214.7,3214.1,0.00280016]
[1768811161827,6.22164847,3214.6,3214.1,0.00280016]
[1768811162130,6.22164847,3214.6,3213.5,0.00080016]
[1768811162131,0.9494716,3214.2,3213.5,0.00080016]
[1768811162788,0.9494716,3214.2,3213.5,0.6824762]
[1768811162789,0.00080024,3214.2,3213.5,0.6824762]
[1768811163423,0.00080024,3214.2,3213.5,3.79434448]
[1768811163722,0.00080024,3214.2,3213.7,0.68167604]
[1768811164289,0.00080016,3214.5,3213.8,0.68155141]
[1768811164521,0.00080016,3214.5,3213.8,0.68235173]
[1768811165219,0.00080016,3214.5,3213.8,0.00080032]
[1768811165516,0.00080016,3214.5,3213.9,0.68142821]
[1768811166017,0.00080016,3214.5,3213.8,0.00080032]
[1768811166324,0.00080016,3214.5,3213.8,0.68210675]
[1768811166839,0.94947152,3214.5,3213.8,0.00080032]
[1768811167231,0.94867136,3214.1,3213.5,0.00080016]
[1768811169216,0.94867136,3213.9,3213.5,0.00080016]
[1768811169940,0.94867136,3214.1,3213.5,0.00080016]
[1768811170121,3.62101369,3214.2,3213.5,0.68163328]
[1768811170321,6.73222706,3214.2,3213.5,0.68163328]
[1768811170537,6.22422706,3214.2,3213.5,0.68163328]
[1768811170739,7.17289842,3214.2,3213.5,0.00080016]
[1768811171838,0.94867136,3214.1,3213.5,0.00080016]
[1768811172341,0.508,3214.1,3213.5,0.00080016]
[1768811173140,0.00180032,3214.2,3213.5,0.00080016]
[1768811173340,3.11300029,3214.2,3213.5,0.00080016]
[1768811173540,0.00180032,3214.2,3213.5,0.68129238]
[1768811173838,0.00080016,3214.5,3213.9,0.67858087]
[1768811174053,3.11100049,3214.4,3213.8,0.0008004]
[1768811174620,0.94947152,3214.5,3213.8,0.0008004]
[1768811174821,4.0603755,3214.5,3213.8,0.0008004]
[1768811175124,4.06038112,3214.5,3213.8,0.0008004]
[1768811175435,7.17129072,3214.5,3213.8,0.0008004]
[1768811175750,4.06037879,3214.5,3213.8,0.0008004]
[1768811175932,0.94867136,3214.4,3213.8,0.0008004]
[1768811176754,3.11170743,3214.5,3213.8,0.67905576]
[1768811177251,3.11170743,3214.5,3213.8,1.05813447]
[1768811177955,0.94867136,3214.4,3213.8,0.37987911]
[1768811178159,0.94867136,3214.4,3213.8,0.0008004]
[1768811180361,0.94867136,3214.2,3213.8,0.0008004]
[1768811181029,0.94967136,3214.2,3213.8,0.0008004]
[1768811182552,0.94867136,3214.0,3213.8,0.0008004]
[1768811182953,0.94867136,3214.0,3213.1,0.506]
[1768811183157,1.00012149,3213.6,3213.1,0.506]
[1768811184432,4.11192636,3213.6,3213.1,0.506]
[1768811184626,1.00012149,3213.6,3213.1,0.506]
[1768811184826,0.00080016,3213.6,3213.1,0.506]
[1768811185256,0.00080016,3213.6,3213.0,0.67814427]
[1768811185458,0.00080016,3213.6,3212.9,3.11322729]
[1768811185459,0.00080016,3213.6,3213.2,0.67814427]
[1768811185963,4.11191831,3213.6,3212.9,0.00080016]
[1768811186157,0.99932133,3213.5,3212.9,0.00080016]
[1768811186551,0.99932133,3213.3,3212.9,0.00080016]
[1768811187584,4.11121052,3213.5,3212.9,0.00080016]
[1768811188077,0.99932133,3213.4,3212.9,0.00080016]
[1768811188577,0.99932133,3213.3,3212.9,0.00080016]
[1768811188935,4.11119641,3213.5,3212.9,0.00080016]
[1768811189455,0.00080016,3213.6,3212.9,0.67856877]
[1768811189642,3.1123664,3213.9,3213.3,0.67767737]
[1768811189643,0.00080016,3213.9,3213.3,0.67767737]
[1768811190942,0.00080016,3213.9,3213.3,3.78971848]
[1768811191271,0.00080016,3213.9,3213.3,0.67767737]
[1768811192068,0.00080016,3213.9,3213.3,6.90177713]
[1768811192240,0.00080016,3213.9,3213.4,0.69025774]
[1768811192636,0.00080016,3213.9,3213.5,0.67749803]
[1768811192836,0.00080016,3213.9,3213.4,0.69025774]
[1768811193083,0.00080016,3213.9,3213.4,3.80221668]
[1768811193387,0.00080016,3213.9,3213.4,1.36766765]
[1768811193541,0.00180016,3213.9,3213.5,0.67740991]
[1768811194946,1.00112173,3214.2,3213.5,3.79007781]
[1768811195151,4.1123298,3214.2,3213.5,0.67821015]
[1768811195339,4.1123298,3214.2,3213.5,3.79007216]
[1768811195340,1.00112173,3214.2,3213.5,3.79007216]
[1768811195540,4.11233965,3214.2,3213.5,0.67821015]
[1768811195774,1.00112173,3214.2,3213.6,0.37901418]
[1768811196173,1.00112173,3214.2,3213.6,1.05616573]
[1768811196174,0.0018004,3214.2,3213.6,1.05616573]
[1768811196378,0.0018004,3214.2,3213.7,0.67715155]